bitfinex/quotes_ETHUSD_20251128
["timestamp","ask_amount","ask_price","bid_price","bid_amount"]
[1764334365518,0.002,3040.3,3040.2,10.8856888]
[1764334365723,0.002,3040.3,3040.2,14.14205351]
[1764334366514,0.002,3040.3,3040.2,16.54135351]
[1764334372651,0.002,3040.3,3040.2,16.94685751]
[1764334375416,0.002,3040.6,3040.5,0.113]
[1764334375642,0.4993,3040.6,3040.5,0.35288932]
[1764334375849,0.9511,3040.6,3040.5,5.75455051]
[1764334376349,0.4538,3040.6,3040.5,15.75455051]
[1764334376526,0.4538,3040.6,3040.5,17.55666434]
[1764334377053,0.4538,3040.6,3040.5,20.84559708]
[1764334377252,0.002,3040.6,3040.5,20.84559708]
[1764334377463,0.4538,3040.6,3040.5,20.84559708]
[1764334378038,0.9511,3040.6,3040.5,20.84559708]
[1764334381430,1.25792158,3040.6,3040.5,20.84559708]
[1764334383258,0.002,3040.7,3040.6,4.41992268]
[1764334383564,0.002,3040.7,3040.6,7.23570655]
[1764334383748,0.002,3040.7,3040.6,7.20281831]
[1764334384061,0.9511,3040.7,3040.6,7.70211831]
[1764334384431,0.4538,3040.7,3040.6,7.70211831]
[1764334384632,0.002,3040.7,3040.6,7.70211831]
[1764334385469,0.9511,3040.7,3040.6,7.29661431]
[1764334385767,0.9511,3040.7,3040.6,4.22141868]
[1764334386864,0.9511,3040.7,3040.6,14.22141868]
[1764334387478,0.9511,3040.7,3040.6,14.01441868]
[1764334387631,0.9511,3040.7,3040.6,14.22141868]
[1764334388145,0.9511,3040.7,3040.6,18.89748576]
[1764334389561,0.9503,3040.7,3040.6,18.89748576]
[1764334395171,1.25730577,3040.7,3040.6,18.89748576]
[1764334396541,1.25730577,3040.7,3040.6,14.22141868]
[1764334401783,1.25773861,3040.7,3040.6,14.22141868]
[1764334407982,0.30863861,3040.7,3040.6,15.98385382]
[1764334408187,1.26513861,3040.7,3040.6,15.98385382]
[1764334408415,1.26513861,3040.7,3040.6,14.22141868]
[1764334409189,1.26513861,3040.7,3040.6,4.22141868]
[1764334409389,1.26513861,3040.7,3040.6,4.25430692]
[1764334413797,1.26433861,3040.7,3040.6,4.25430692]
[1764334414495,1.26433861,3040.7,3040.6,4.22141868]
[1764334414875,1.2644038,3040.7,3040.6,4.22141868]
[1764334415076,1.2644038,3040.7,3040.6,4.25430692]
[1764334415870,1.2644038,3040.7,3040.6,4.22141868]
[1764334416178,1.2644038,3040.7,3040.6,4.25430692]
[1764334419000,1.2644038,3040.7,3040.6,4.22141868]
[1764334421302,1.2644038,3040.7,3040.6,3.49582457]
[1764334427807,1.26434163,3040.7,3040.6,3.49582457]
[1764334428486,1.26434163,3040.7,3040.6,5.39582457]
[1764334429111,0.30784163,3040.7,3040.6,10.07119293]
[1764334429412,0.30784163,3040.7,3040.6,11.4186055]
[1764334431405,0.30784163,3040.7,3040.6,10.07119293]
[1764334434513,0.30745195,3040.7,3040.6,10.07119293]
[1764334435782,1.27125195,3040.7,3040.6,10.07119293]
[1764334435982,0.77425195,3040.7,3040.6,10.07119293]
[1764334436182,0.30745195,3040.7,3040.6,10.07119293]
[1764334437283,0.30745195,3040.7,3040.6,11.44935069]
[1764334438120,0.30665195,3040.7,3040.6,11.44935069]
[1764334440487,0.002,3040.8,3040.6,14.73817526]
[1764334440697,0.002,3040.8,3040.7,0.03288716]
[1764334441019,0.002,3040.8,3040.7,1.88103187]
[1764334442388,0.9658,3040.8,3040.7,0.03288716]
[1764334442590,0.9658,3040.8,3040.6,13.3600175]
[1764334442790,0.9638,3040.7,3040.6,10.07119293]
[1764334442990,0.002,3040.8,3040.6,13.3600175]
[1764334443185,0.002,3040.8,3040.7,0.03288716]
[1764334443590,0.4688,3040.8,3040.7,0.03288716]
[1764334444090,0.4688,3040.8,3040.6,13.3600175]
[1764334444291,0.4688,3040.8,3040.7,1.70704022]
[1764334444923,0.002,3040.8,3040.7,3.28871641]
[1764334445090,0.4688,3040.8,3040.7,3.28871641]
[1764334445608,0.9658,3040.8,3040.7,3.28871641]
[1764334446023,0.4688,3040.8,3040.7,3.32160357]
[1764334446192,0.9658,3040.8,3040.7,3.28871641]
[1764334450041,1.27263314,3040.8,3040.7,3.28871641]
[1764334459131,0.77563314,3040.8,3040.7,3.28871641]
[1764334459431,0.30883314,3040.8,3040.7,4.63610734]
[1764334459931,0.80053314,3040.8,3040.7,4.63610734]
[1764334460104,0.80053314,3040.8,3040.7,3.28871641]
[1764334460733,1.26933314,3040.8,3040.7,3.28871641]
[1764334461833,0.30883314,3040.8,3040.7,3.28871641]
[1764334462432,0.30803314,3040.8,3040.7,3.28871641]
[1764334464558,0.30833888,3040.8,3040.7,3.32160357]
[1764334464777,0.30833888,3040.8,3040.7,4.67238322]
[1764334464917,0.30833888,3040.8,3040.7,5.14318322]
[1764334465353,0.30833888,3040.8,3040.7,5.86877733]
[1764334465513,0.0012,3040.8,3040.7,5.83589017]
[1764334465716,0.0012,3040.8,3040.7,5.86877733]
[1764334466445,0.0012,3040.8,3040.7,5.83589017]
[1764334466650,0.0012,3040.8,3040.7,10.50627465]
[1764334469720,0.9617,3040.8,3040.7,10.50627465]
[1764334478058,0.9617,3040.8,3040.7,20.50627465]
[1764334480242,0.9617,3040.8,3040.7,19.155495]
[1764334480732,0.4929,3040.8,3040.7,19.155495]
[1764334481067,1.29720958,3040.8,3040.7,14.01135754]
[1764334482335,1.29720958,3040.8,3040.7,18.684695]
[1764334486439,1.29640958,3040.8,3040.7,18.684695]
[1764334487038,1.29640958,3040.8,3040.7,13.28576343]
[1764334488474,1.29640958,3040.8,3040.7,3.28576343]
[1764334498084,1.29640958,3040.8,3040.6,3.49679698]
[1764334498250,1.26810958,3040.7,3040.6,3.49679698]
[1764334500385,1.26810958,3040.7,3040.6,3.28979698]
[1764334507188,0.30660958,3040.7,3040.6,3.28979698]
[1764334507593,0.77040958,3040.7,3040.6,3.28979698]
[1764334507814,1.26837707,3040.7,3040.6,3.28979698]
[1764334509989,0.30687707,3040.7,3040.6,3.28979698]
[1764334510698,0.30607707,3040.7,3040.6,3.28979698]
[1764334511296,0.79917707,3040.7,3040.6,3.28979698]
[1764334511616,1.26137707,3040.7,3040.6,3.28979698]
[1764334511819,0.30607707,3040.7,3040.6,3.28979698]
[1764334517309,0.80217707,3040.7,3040.6,3.28979698]
[1764334520208,1.26267707,3040.7,3040.6,3.28979698]
[1764334520737,1.26267707,3040.7,3040.6,0.001]
[1764334521240,2.17922583,3040.7,3040.6,0.001]
[1764334524797,2.27835575,3040.7,3040.6,0.001]
[1764334527431,2.27937859,3040.7,3040.6,0.001]
[1764334528441,2.28137859,3040.7,3040.6,0.001]
[1764334530205,2.18224867,3040.7,3040.6,0.001]
[1764334533937,2.18207402,3040.7,3040.6,0.001]
[1764334534937,2.18127402,3040.7,3040.6,0.001]
[1764334539533,1.72077402,3040.7,3040.6,0.001]
[1764334539728,1.47272526,3040.7,3040.6,0.001]
[1764334540315,2.17956625,3040.7,3040.6,0.001]
[1764334542613,1.22376625,3040.7,3040.6,0.001]
[1764334542817,0.97022526,3040.7,3040.6,0.001]
[1764334543020,1.45692526,3040.7,3040.6,0.001]
[1764334543740,2.16403729,3040.7,3040.6,0.001]
[1764334545752,5.55188362,3040.7,3040.6,0.001]
[1764334546064,5.4527537,3040.7,3040.6,0.001]
[1764334546250,5.55188362,3040.7,3040.6,0.001]
[1764334547435,2.16403729,3040.7,3040.6,0.001]
[1764334554456,1.22403729,3040.7,3040.6,0.001]
[1764334554844,2.16403729,3040.7,3040.6,0.001]
[1764334557767,1.22403729,3040.7,3040.6,0.001]
[1764334557969,1.67733729,3040.7,3040.6,0.001]
[1764334558129,2.16403729,3040.7,3040.6,0.001]
[1764334559241,2.16323729,3040.7,3040.6,0.001]
[1764334560668,6.33897802,3040.7,3040.6,0.001]
[1764334561226,2.56356161,3040.7,3040.6,0.001]
[1764334561468,0.30892526,3040.7,3040.6,0.0026]
[1764334561651,0.30892526,3040.7,3040.6,0.34235327]
[1764334562473,0.30892526,3040.7,3040.6,3.63117784]
[1764334565141,0.30892526,3040.7,3040.6,3.63197784]
[1764334565537,0.30892526,3040.7,3040.6,3.63117784]
[1764334577183,0.30892526,3040.7,3040.6,3.66486608]
[1764334578898,0.30892526,3040.7,3040.6,3.97379134]
[1764334582243,0.002,3040.7,3040.6,3.97379134]
[1764334583139,0.0013085,3040.9,3040.8,0.0008]
[1764334583456,0.0005085,3040.9,3040.8,5.28289205]
[1764334583740,0.0005085,3040.9,3040.8,5.27889205]
[1764334584107,0.0005085,3040.9,3040.8,6.13617535]
[1764334584306,0.0005085,3040.9,3040.8,9.42478361]
[1764334588646,0.0005085,3040.9,3040.8,9.41982492]
[1764334592554,1e-08,3041.2,3041.0,0.405504]
[1764334592756,1e-08,3041.2,3041.1,13.76473041]
[1764334592954,1e-08,3041.2,3041.1,15.47004179]
[1764334593157,1e-08,3041.2,3041.1,15.60171017]
[1764334594649,1e-08,3041.2,3041.1,10.52353194]
[1764334595049,0.002,3041.5,3041.2,10.7255941]
[1764334595242,0.002,3041.5,3041.3,5.60526834]
[1764334595643,0.002,3041.5,3041.3,6.07796834]
[1764334595944,0.002,3041.5,3041.3,8.24808951]
[1764334596967,0.002,3041.5,3041.3,11.53615711]
[1764334597355,0.9739,3041.4,3041.3,11.53615711]
[1764334597550,0.5012,3041.4,3041.3,3.9677676]
[1764334597757,1.28035915,3041.4,3041.3,3.4950676]
[1764334604252,1.30595915,3041.4,3041.3,3.4950676]
[1764334605368,1.30595915,3041.4,3041.3,13.4950676]
[1764334607778,1.30515915,3041.4,3041.3,13.4950676]
[1764334608342,1.30515915,3041.4,3041.3,3.4950676]
[1764334608744,1.30515915,3041.4,3041.3,3.2880676]
[1764334610167,1.30515915,3041.4,3041.1,6.57656768]
[1764334610372,0.80475915,3041.3,3041.1,6.57656768]
[1764334610570,0.78825915,3041.2,3041.1,3.28828384]
[1764334610751,1.28655915,3041.2,3041.1,3.28828384]
[1764334612369,1.28655915,3041.2,3040.9,6.57700022]
[1764334612544,0.80475915,3041.1,3040.9,6.57700022]
[1764334612742,0.78825915,3041.0,3040.9,3.28850011]
[1764334612959,1.28655915,3041.0,3040.9,3.28850011]
[1764334614542,1.28655915,3041.0,3040.8,6.57720884]
[1764334614738,1.48465915,3040.9,3040.8,3.28860058]
[1764334616677,1.48465915,3040.9,3040.7,0.001]
[1764334616880,1.28655915,3040.8,3040.7,0.001]
[1764334617082,0.30645915,3040.8,3040.7,0.001]
[1764334617383,0.78825915,3040.8,3040.7,0.001]
[1764334617561,1.28655915,3040.8,3040.7,0.001]
[1764334617886,1.27849867,3040.8,3040.7,0.001]
[1764334620569,0.78019867,3040.8,3040.7,0.001]
[1764334621010,1.27849867,3040.8,3040.7,0.001]
[1764334632110,1.27769867,3040.8,3040.7,0.001]
[1764334632282,1.27969867,3040.8,3040.7,0.001]
[1764334641834,1.9885205,3040.8,3040.7,0.001]
[1764334645527,6.86819473,3040.8,3040.7,0.001]
[1764334650638,2.1955205,3040.8,3040.7,0.001]
[1764334653835,1.0084205,3040.8,3040.7,0.001]
[1764334654032,1.7011205,3040.8,3040.7,0.001]
[1764334654337,2.1687205,3040.8,3040.7,0.001]
[1764334654645,1.9617205,3040.8,3040.7,0.001]
[1764334655511,2.06085042,3040.8,3040.7,0.001]
[1764334656139,2.06005042,3040.8,3040.7,0.001]
[1764334656914,1.9609205,3040.8,3040.7,0.001]
[1764334661413,2.06005042,3040.8,3040.7,0.001]
[1764334663065,0.405504,3040.7,3040.6,0.001]
[1764334663221,9.30844986,3040.7,3040.6,0.001]
[1764334663418,11.08242659,3040.7,3040.6,0.001]
[1764334663949,11.2142121,3040.7,3040.6,0.001]
[1764334664648,11.21256247,3040.7,3040.6,0.001]
[1764334666247,14.50127888,3040.7,3040.6,0.001]
[1764334667130,12.72730215,3040.7,3040.6,0.001]
[1764334667754,14.50127888,3040.7,3040.6,0.001]
[1764334668243,14.80780133,3040.7,3040.6,0.001]
[1764334669244,13.0338246,3040.7,3040.6,0.001]
[1764334671264,14.80780133,3040.7,3040.6,0.001]
[1764334671675,14.80767545,3040.7,3040.6,0.001]
[1764334672177,13.13369872,3040.7,3040.6,0.001]
[1764334672378,30.20243872,3040.7,3040.6,0.001]
[1764334672948,30.20109023,3040.7,3040.6,0.001]
[1764334673466,31.49782623,3040.7,3040.6,0.001]
[1764334674067,21.66999203,3040.6,3040.5,0.114]
[1764334674243,23.84221231,3040.6,3040.5,0.114]
[1764334674773,23.9740078,3040.6,3040.5,0.114]
[1764334675162,20.3740078,3040.6,3040.5,0.114]
[1764334675872,30.07923237,3040.6,3040.5,0.114]
[1764334676278,31.84342773,3040.6,3040.5,0.114]
[1764334676575,24.83513673,3040.6,3040.5,0.114]
[1764334676872,21.60529173,3040.6,3040.5,0.114]
[1764334680488,21.60449173,3040.6,3040.5,0.114]
[1764334681682,21.6042392,3040.6,3040.5,0.114]
[1764334683675,15.0026112,3040.6,3040.5,0.114]
[1764334684053,43.23841584,3040.6,3040.5,0.114]
[1764334684254,18.77501103,3040.4,3040.3,0.001]
[1764334684462,18.77501103,3040.4,3040.1,0.001]
[1764334684463,1.13109811,3040.3,3040.1,0.001]
[1764334684663,1.13109811,3040.3,3040.0,0.001]
[1764334684664,31.23022803,3040.1,3040.0,0.001]
[1764334684863,37.71160764,3040.1,3040.0,0.001]
[1764334685080,38.18060764,3040.1,3040.0,0.001]
[1764334685384,41.60179641,3040.1,3040.0,0.001]
[1764334687488,48.01819641,3040.1,3040.0,0.001]
[1764334687877,24.25127003,3039.9,3039.1,0.001]
[1764334688077,29.69659778,3039.9,3039.1,0.001]
[1764334688375,27.57749578,3039.9,3039.1,0.001]
[1764334688577,27.70932689,3039.9,3039.1,0.001]
[1764334689277,30.94546878,3039.9,3039.1,0.001]
[1764334689974,22.31368078,3039.9,3039.1,0.001]
[1764334690325,11.16735603,3039.7,3039.1,0.001]
[1764334690602,17.54873564,3039.7,3039.1,0.001]
[1764334690809,18.04713564,3039.7,3039.1,0.001]
[1764334691011,18.17896762,3039.7,3039.1,0.001]
[1764334691321,19.94284293,3039.7,3039.1,0.001]
[1764334692209,23.23264126,3039.7,3039.1,0.001]
[1764334693513,29.82097157,3039.7,3039.1,0.001]
[1764334695000,1.00263392,3039.4,3039.3,2.8e-05]
[1764334695202,7.41860764,3039.4,3039.3,2.8e-05]
[1764334695711,7.55043962,3039.4,3039.3,2.8e-05]
[1764334696198,6.9533097,3039.4,3039.3,0.001028]
[1764334696403,2.37402776,3039.4,3039.3,0.001028]
[1764334697101,2.27489784,3039.4,3039.3,0.001028]
[1764334697308,2.58102776,3039.4,3039.3,0.002028]
[1764334697601,2.58102776,3039.4,3039.3,0.001028]
[1764334697908,11.04756267,3039.4,3039.3,2.8e-05]
[1764334698219,11.50386267,3039.4,3039.3,2.8e-05]
[1764334698703,11.04756267,3039.4,3039.3,2.8e-05]
[1764334699129,11.50386267,3039.4,3039.3,2.8e-05]
[1764334699530,17.92026267,3039.4,3039.3,2.8e-05]
[1764334702036,19.09688859,3039.4,3039.3,2.8e-05]
[1764334702215,17.92026267,3039.4,3039.3,2.8e-05]
[1764334704841,17.91946267,3039.4,3039.3,2.8e-05]
[1764334708219,19.68333798,3039.4,3039.3,2.8e-05]
[1764334709256,19.68400803,3039.4,3039.3,2.8e-05]
[1764334709566,19.68520006,3039.4,3039.3,2.8e-05]
[1764334710569,19.6909585,3039.4,3039.3,2.8e-05]
[1764334713236,17.92708319,3039.4,3039.3,2.8e-05]
[1764334713977,19.69660382,3039.4,3039.3,2.8e-05]
[1764334714177,17.92708319,3039.4,3039.3,2.8e-05]
[1764334714841,17.47078319,3039.4,3039.3,2.8e-05]
[1764334715042,16.87365327,3039.4,3039.3,0.001028]
[1764334715273,16.97278319,3039.4,3039.3,0.001028]
[1764334715764,16.76578319,3039.4,3039.3,0.001028]
[1764334715967,16.97278319,3039.4,3039.3,0.001028]
[1764334716175,16.76578319,3039.4,3039.3,0.001028]
[1764334716378,16.97278319,3039.4,3039.3,0.001028]
[1764334717570,16.76578319,3039.4,3039.3,0.001028]
[1764334717797,16.97278319,3039.4,3039.3,0.001028]
[1764334718461,18.74432316,3039.4,3039.3,0.001028]
[1764334718896,8.91746947,3039.4,3039.3,0.002028]
[1764334719196,8.46195386,3039.4,3039.3,0.002028]
[1764334719355,8.46395386,3039.4,3039.3,0.002028]
[1764334719759,8.25695386,3039.4,3039.3,0.002028]
[1764334719971,8.46395386,3039.4,3039.3,0.002028]
[1764334721073,1.01582983,3039.4,3039.3,0.001028]
[1764334721392,1.01582983,3039.4,3039.3,0.002028]
[1764334727501,0.30881409,3039.4,3039.3,0.002028]
[1764334728275,1.01582983,3039.4,3039.3,0.002028]
[1764334728490,0.30881409,3039.4,3039.3,0.002028]
[1764334728989,0.30801409,3039.4,3039.3,0.002028]
[1764334729189,1.01502983,3039.4,3039.3,0.002028]
[1764334729385,0.30801409,3039.4,3039.3,0.002028]
[1764334733426,0.30801409,3039.4,3039.3,0.001028]
[1764334737201,0.43982174,3039.4,3039.3,0.001028]
[1764334740843,0.43982174,3039.4,3039.3,0.002028]
[1764334741023,1.14795091,3039.4,3039.3,0.001028]
[1764334741226,0.43982174,3039.4,3039.3,0.001028]
[1764334741626,1.14795091,3039.4,3039.3,0.001028]
[1764334741957,1.14795091,3039.4,3039.3,2.8e-05]
[1764334742114,10.58197818,3039.4,3039.3,2.8e-05]
[1764334742314,11.30757229,3039.4,3039.3,2.8e-05]
[1764334742633,12.48868201,3039.4,3039.3,2.8e-05]
[1764334743833,18.90508201,3039.4,3039.3,2.8e-05]
[1764334744039,17.72397229,3039.4,3039.3,2.8e-05]
[1764334746565,19.11225309,3039.4,3039.3,2.8e-05]
[1764334746969,19.01312317,3039.4,3039.3,2.8e-05]
[1764334747171,19.11225309,3039.4,3039.3,2.8e-05]
[1764334753160,19.11145309,3039.4,3039.3,2.8e-05]
[1764334756084,14.42728279,3039.4,3039.3,2.8e-05]
[1764334757289,14.22028279,3039.4,3039.3,2.8e-05]
[1764334757494,14.42728279,3039.4,3039.3,2.8e-05]
[1764334759190,14.1220687,3039.4,3039.3,2.8e-05]
[1764334761688,13.9150687,3039.4,3039.3,2.8e-05]
[1764334761989,14.1220687,3039.4,3039.3,2.8e-05]
[1764334762174,13.6422687,3039.4,3039.3,2.8e-05]
[1764334762782,14.1016687,3039.4,3039.3,2.8e-05]
[1764334764083,12.9203879,3039.4,3039.3,2.8e-05]
[1764334765091,13.22783996,3039.4,3039.3,2.8e-05]
[1764334766397,13.22788496,3039.4,3039.3,2.8e-05]
[1764334769095,13.02088496,3039.4,3039.3,2.8e-05]
[1764334769396,13.22788496,3039.4,3039.3,2.8e-05]
[1764334769590,12.76848496,3039.4,3039.3,2.8e-05]
[1764334770198,13.22788496,3039.4,3039.3,2.8e-05]
[1764334771102,14.99942493,3039.4,3039.3,2.8e-05]
[1764334776095,13.22788496,3039.4,3039.3,2.8e-05]
[1764334777395,13.22708496,3039.4,3039.3,2.8e-05]
[1764334779568,6.81068496,3039.4,3039.3,2.8e-05]
[1764334781079,6.35128496,3039.4,3039.3,2.8e-05]
[1764334781797,6.14428496,3039.4,3039.3,2.8e-05]
[1764334782115,6.35128496,3039.4,3039.3,2.8e-05]
[1764334785310,1.87422799,3039.4,3039.3,0.001028]
[1764334785509,2.08122799,3039.4,3039.3,0.001028]
[1764334785810,3.95491201,3039.4,3039.3,0.001028]
[1764334785985,7.24503506,3039.4,3039.3,0.001028]
[1764334786915,3.74791201,3039.4,3039.3,0.001028]
[1764334787111,3.95491201,3039.4,3039.3,0.001028]
[1764334787526,3.64878209,3039.4,3039.3,0.001028]
[1764334787684,1.97335791,3039.4,3039.3,0.002028]
[1764334788017,3.15659881,3039.4,3039.3,0.002028]
[1764334789322,1.97335791,3039.4,3039.3,0.002028]
[1764334790892,1.97483151,3039.4,3039.3,0.002028]
[1764334791093,1.97483151,3039.4,3039.3,0.001028]
[1764334792001,1.97527872,3039.4,3039.3,0.001028]
[1764334792819,1.97527872,3039.4,3039.3,0.002028]
[1764334793206,2.86195038,3039.4,3039.3,0.002028]
[1764334793414,2.76282046,3039.4,3039.3,0.002028]
[1764334793921,2.63101281,3039.4,3039.3,0.002028]
[1764334795090,1.74434115,3039.4,3039.3,0.002028]
[1764334800430,1.74434115,3039.4,3039.3,0.001028]
[1764334801026,3.19674273,3039.4,3039.3,2.8e-05]
[1764334801631,3.19594273,3039.4,3039.3,2.8e-05]
[1764334802426,6.48606578,3039.4,3039.3,2.8e-05]
[1764334802630,6.96496578,3039.4,3039.3,2.8e-05]
[1764334803938,3.67484273,3039.4,3039.3,2.8e-05]
[1764334805406,6.96496578,3039.4,3039.3,2.8e-05]
[1764334806545,3.67484273,3039.4,3039.3,2.8e-05]
[1764334806812,6.96496578,3039.4,3039.3,2.8e-05]
[1764334807018,6.07829412,3039.4,3039.3,2.8e-05]
[1764334807318,7.39334919,3039.4,3039.3,2.8e-05]
[1764334809040,6.91444919,3039.4,3039.3,2.8e-05]
[1764334809237,7.39334919,3039.4,3039.3,2.8e-05]
[1764334810606,6.44784919,3039.4,3039.3,2.8e-05]
[1764334810812,6.65484919,3039.4,3039.3,2.8e-05]
[1764334811313,7.60564919,3039.4,3039.3,2.8e-05]
[1764334813048,7.60564919,3039.4,3039.0,0.001]
[1764334813049,10.11803534,3039.4,3039.0,0.001]
[1764334813338,0.72559411,3039.0,3038.9,0.001]
[1764334813512,3.13203369,3039.0,3038.9,0.001]
[1764334813710,1.95014115,3039.0,3038.9,0.005]
[1764334814123,2.08197052,3039.0,3038.9,0.001]
[1764334814436,2.53757052,3039.0,3038.9,0.001]
[1764334814641,2.18110044,3039.0,3038.9,0.001]
[1764334815137,2.08197052,3039.0,3038.9,0.001]
[1764334815441,1.87497052,3039.0,3038.9,0.005]
[1764334815640,2.96831113,3039.0,3038.9,0.005]
[1764334817822,2.03571702,3039.0,3038.9,0.005]
[1764334818029,1.14937641,3039.0,3038.9,3.29966438]
[1764334818349,1.01754704,3039.0,3038.9,3.95871733]
[1764334818645,0.30794427,3039.0,3038.9,3.95871733]
[1764334825824,0.30714427,3039.0,3038.9,3.95871733]
[1764334826560,0.30714427,3039.0,3038.9,8.6751421]
[1764334826855,0.30714427,3039.0,3038.9,8.64223546]
[1764334828255,0.30714427,3039.0,3038.9,9.35044671]
[1764334830436,0.0004,3039.4,3038.9,15.93177547]
[1764334830636,0.0004,3039.4,3039.3,0.004]
[1764334831052,0.0004,3039.4,3039.3,0.008]
[1764334832255,0.0004,3039.4,3039.3,3.2982313]
[1764334835258,0.0004,3039.4,3039.3,3.2942313]
[1764334837965,0.30725232,3039.4,3039.3,3.2942313]
[1764334838143,0.30725232,3039.4,3039.3,4.44176319]
[1764334842389,0.30725232,3039.4,3039.3,1.14753189]
[1764334842390,0.76965232,3039.4,3039.3,1.14753189]
[1764334842591,1.23025232,3039.4,3039.0,3.2905561]
[1764334842889,1.23025232,3039.4,3038.9,0.001]
[1764334842890,0.76745232,3039.3,3038.9,0.001]
[1764334843058,0.30685232,3039.2,3038.9,0.001]
[1764334843252,0.30685232,3039.1,3038.9,0.001]
[1764334843577,0.30685232,3039.0,3038.9,0.001]
[1764334843778,0.30685232,3039.0,3038.9,0.72757173]
[1764334844284,0.76925232,3039.0,3038.9,0.001]
[1764334844482,0.30685232,3039.0,3038.9,0.005]
[1764334844979,0.30685232,3039.0,3038.9,3.29566438]
[1764334845756,0.30685232,3039.0,3038.9,7.97941619]
[1764334845951,0.30685232,3039.0,3038.9,3.75626438]
[1764334846146,0.30685232,3039.0,3038.9,4.92894046]
[1764334846349,0.30685232,3039.0,3038.9,9.61269227]
[1764334847075,0.30685232,3039.0,3038.9,4.93294046]
[1764334848454,0.30685232,3039.0,3038.9,4.92894046]
[1764334849961,0.30685232,3039.0,3038.9,4.93294046]
[1764334850167,0.30605232,3039.0,3038.9,9.61269227]
[1764334851290,0.30605232,3039.0,3038.9,4.92894046]
[1764334852287,0.30605232,3039.0,3038.9,4.93294046]
[1764334854590,0.30805232,3039.0,3038.9,4.93294046]
[1764334854779,0.002,3039.0,3038.9,4.92894046]
[1764334857780,0.002,3039.0,3038.9,9.18499891]
[1764334857983,0.002,3039.0,3038.9,9.14809227]
[1764334858381,0.002,3039.0,3038.9,9.15209227]
[1764334858890,0.002,3039.0,3038.9,9.14809227]
[1764334861769,0.00035469,3039.0,3038.9,9.14809227]
[1764334862198,0.30811797,3039.0,3038.9,9.14809227]
[1764334865099,0.30811797,3039.0,3038.9,9.35909227]
[1764334868194,0.30811797,3039.0,3038.9,9.30909227]
[1764334870379,0.30811797,3039.0,3038.9,15.11994219]
[1764334870575,0.0004,3039.4,3039.3,4.67975181]
[1764334870772,0.0004,3039.4,3039.3,5.14772699]
[1764334871405,0.0004,3039.4,3039.3,8.43795829]
[1764334872104,0.98,3039.4,3039.3,3.75820648]
[1764334872274,0.98,3039.4,3039.3,3.2902313]
[1764334873506,0.98,3039.4,3039.0,6.5811122]
[1764334873707,0.4986,3039.3,3039.0,6.5811122]
[1764334874006,0.4525,3039.1,3039.0,3.2905561]
[1764334874407,0.9503,3039.1,3039.0,3.2905561]
[1764334874597,0.9503,3039.1,3039.0,4.43744974]
[1764334874798,0.9503,3039.1,3039.0,9.11720155]
[1764334875309,0.0004,3039.4,3039.0,15.69831375]
[1764334875310,0.4986,3039.3,3039.0,15.69831375]
[1764334875514,0.9511,3039.1,3039.0,9.11720155]
[1764334879309,0.9511,3039.1,3039.0,3.2905561]
[1764334881890,0.9511,3039.1,3038.9,0.001]
[1764334882211,0.9511,3039.0,3038.9,0.001]
[1764334882515,1.25889391,3039.0,3038.9,0.001]
[1764334885398,1.25884746,3039.0,3038.9,0.001]
[1764334886620,1.20884746,3039.0,3038.9,0.001]
[1764334888599,0.30774746,3039.0,3038.9,3.34246438]
[1764334888802,0.30774746,3039.0,3038.9,4.00402849]
[1764334889101,0.30774746,3039.0,3038.9,4.03693513]
[1764334889302,1.25884746,3039.0,3038.9,3.32457102]
[1764334889512,1.25884746,3039.0,3038.9,3.29166438]
[1764334891126,0.76024746,3039.0,3038.9,3.32457102]
[1764334891925,0.76024746,3039.0,3038.9,3.29166438]
[1764334892131,1.25884746,3039.0,3038.9,3.29166438]
[1764334892790,1.25884746,3039.0,3038.9,0.001]
[1764334897135,1.46584746,3039.0,3038.9,0.001]
[1764334897331,1.25884746,3039.0,3038.9,0.001]
[1764334897731,0.30774746,3039.0,3038.9,0.001]
[1764334897932,1.25884746,3039.0,3038.9,0.001]
[1764334898328,0.76024746,3039.0,3038.9,0.001]
[1764334898533,0.75944746,3039.0,3038.9,0.001]
[1764334898833,0.30694746,3039.0,3038.9,0.08470664]
[1764334899038,0.30694746,3039.0,3038.9,0.75133184]
[1764334900334,0.30694746,3039.0,3038.9,0.80213184]
[1764334900542,0.30694746,3039.0,3038.9,4.09279622]
[1764334901113,0.30694746,3039.0,3038.9,4.05988958]
[1764334901310,0.30694746,3039.0,3038.9,4.00908958]
[1764334901710,0.30694746,3039.0,3038.9,4.05988958]
[1764334902212,0.30694746,3039.0,3038.9,4.00908958]
[1764334905620,0.30894746,3039.0,3038.9,4.00908958]
[1764334920782,1.23714746,3039.0,3038.9,3.95828958]
[1764334921079,1.23714746,3039.0,3038.9,3.29166438]
[1764334922855,1.23634746,3039.0,3038.9,3.29166438]
[1764334923880,1.23634746,3039.0,3038.9,0.001]
[1764334924491,1.94601253,3039.0,3038.9,0.001]
[1764334930775,0.78594746,3039.0,3038.9,0.001]
[1764334930972,1.23904746,3039.0,3038.9,0.001]
[1764334931269,1.23904746,3039.0,3038.9,0.0518]
[1764334931270,0.30814746,3039.0,3038.9,0.0518]
[1764334931684,0.30814746,3039.0,3038.9,0.52529622]
[1764334932089,0.30814746,3039.0,3038.9,0.57609622]
[1764334932591,0.002,3039.0,3038.9,0.57609622]
[1764334932765,0.002,3039.0,3038.9,3.8667606]
[1764334934266,0.002,3039.0,3038.9,3.89966724]
[1764334941164,0.002,3039.0,3038.9,3.84886724]
[1764334942874,0.002,3039.0,3038.9,3.79886724]
[1764334945470,0.002,3039.0,3038.9,3.7659606]
[1764334945999,0.002,3039.0,3038.9,3.79886724]
[1764334946206,0.9806,3039.0,3038.9,3.7641606]
[1764334946372,0.4914,3039.0,3038.9,3.7641606]
[1764334946573,0.002,3039.0,3038.9,3.7641606]
[1764334946999,0.0012,3039.0,3038.9,3.7641606]
[1764334948712,1.28731111,3039.0,3038.9,3.29066438]
[1764334948871,1.28731111,3039.0,3038.9,3.24066438]
[1764334950712,1.28731111,3039.0,3038.6,6.58297854]
[1764334950915,0.6772,3038.7,3038.6,3.29198927]
[1764334951080,0.98471111,3038.7,3038.6,3.29198927]
[1764334951284,1.47386319,3038.7,3038.6,3.29198927]
[1764334955689,0.30746319,3038.7,3038.6,8.00986137]
[1764334956018,0.79686319,3038.7,3038.6,3.29198927]
[1764334956193,1.28606319,3038.7,3038.6,3.32489916]